Cogmind - Beta 15 @@@ ROGUE MODE // 2025.08.02 @ 04:15:35 Player: Aon Result: Destroyed by as-09141 with Assembled Heavy Rifle Performance ------------- Evolutions (1) 500 Regions Visited (3) 600 Robots Destroyed (1) 5 Value Destroyed (45) 45 Prototype IDs (4) 80 Alien Tech Used (0) 0 Bonus (200) 200 TOTAL SCORE: 1430 Bonus ------- Pacifist 200 Cogmind --------- Core Integrity 0/400 Matter 300/300 Energy 73/100 System Corruption 41% Temperature Cool (0) Movement Rolling (100) Location -9/Mines Parts ------- > --- POWER (1) -------- (None) > --- PROPULSION (2) --- Compact Wheel > --- UTILITY (4) ------ Small Storage Unit Terrain Scanner > --- WEAPON (2) ------- (None) > --- INVENTORY (8) ---- (None) Peak State ------------ > --- POWER ------------ Cooled Ion Engine > --- PROPULSION ------- Airjet Airjet > --- UTILITY ---------- Small Storage Unit Medium Battery Signal Interpreter Power Shielding > --- WEAPON ----------- Assault Rifle Assault Rifle > --- INVENTORY -------- Ion Engine Wheel VTOL Module Improved Flight Unit Structural Scanner Signal Interpreter Rocket Launcher Welding Torch [Rating: 16] Favorites ----------- Power Cooled Ion Engine Engine Cooled Ion Engine Propulsion Airjet Leg Aluminum Leg Wheel Wheel Hover Unit Airjet Flight Unit VTOL Module Utility Small Storage Unit Device Structural Scanner Storage Small Storage Unit Processor Signal Interpreter Protection Power Shielding Weapon Assault Rifle Ballistic Gun Assault Rifle Launcher Rocket Launcher Special Weapon Welding Torch Build | -11 -10 -9 -9 ------- Run | Yrd Mat Mat Min Slots Evolved 2 | . . 2 . Power . | . . . . Propulsion . | . . . . Utility 2 | . . 2 . Weapon . | . . . . Parts Attached 23 | 6 1 6 10 Power 3 | 1 . 1 1 Engine 3 | 1 . 1 1 Core . | . . . . Reactor . | . . . . Propulsion 8 | 2 . 2 4 Treads . | . . . . Leg 2 | 2 . . . Wheel 2 | . . . 2 Hover 2 | . . 2 . Flight 2 | . . . 2 Utility 8 | 1 1 2 4 Device 2 | . . . 2 Storage 3 | 1 . 1 1 Processor 2 | . 1 . 1 Hackware . | . . . . Protection 1 | . . 1 . Artifact . | . . . . Weapon 4 | 2 . 1 1 Energy Gun . | . . . . Energy Cannon . | . . . . Ballistic Gun 2 | 2 . . . Ballistic Cannon . | . . . . Launcher 1 | . . 1 . Special Weapon 1 | . . . 1 Impact Weapon . | . . . . Slashing Weapon . | . . . . Piercing Weapon . | . . . . Special Melee Weapon . | . . . . Unidentified Prototypes 2 | . . 1 1 Parts Lost 16 | . . . 16 Power 2 | . . . 2 Propulsion 4 | . . . 4 Utility 6 | . . . 6 Weapon 4 | . . . 4 Highest Loss Streak 16 | . . . 16 To Critical Strikes . | . . . . Average Backups 6 | 1 5 7 6 Power . | . 1 1 . Propulsion 2 | 1 2 2 2 Utility 1 | . . 1 1 Weapon 1 | . 1 1 . Tool/Special . | . . . . Unused Backups 2 | . . 2 . Power . | . . . . Propulsion 1 | . . 1 . Utility . | . . . . Weapon 1 | . . 1 . Tool/Special . | . . . . Average Slot Usage (%) 89 | . 91 98 84 Engine 10 | . 14 11 10 Leg 7 | . 28 18 . Hover 11 | . . 3 16 Storage 18 | . 14 22 17 Processor 9 | . 6 11 9 Protection 7 | . . 9 8 Ballistic Gun 19 | . 28 21 16 Peak Build Rating 16 | 6 7 16 16 Average Rating 11 | 4 6 11 13 On Entrance 7 | . 6 7 16 Naked Turns 25 | . . . 25 Heaviest Build 22 | 14 14 22 20 Greatest Support 20 | 20 20 20 16 Greatest Overweight (x) 4 | . . 2 4 Average Overweight (x) . | . . . . Largest Inventory Capacity 8 | 8 8 8 8 Average Capacity 7 | 6 8 8 7 Most Carried 8 | 4 7 8 8 Average Carried 6 | 1 5 7 6 Final Capacity 8 | 8 8 8 8 Final Carried 8 | 4 7 8 . Class Distribution -------------------- 100% | Mutant Dominant Class ---------------- Mutant | -10/Materials Mutant | -9/Materials Mutant | -9/Mines Resources | -11 -10 -9 -9 ----------- Run | Yrd Mat Mat Min Matter Collected 448 | 211 . 34 203 Remotely . | . . . . Salvage Created 59 | . . 34 25 Parts 2 | . . 2 . Haulers Intercepted . | . . . . Recyclers Shooed . | . . . . Parts Field Recycled . | . . . . Retrieved Matter . | . . . . Parts Self-Destructed . | . . . . Prevented . | . . . . Kills | -11 -10 -9 -9 ------- Run | Yrd Mat Mat Min Combat Hostiles Destroyed 3 | . . 1 2 Guns 2 | . . . 2 AOE 1 | . . 1 . Classes Destroyed 2 | . . 1 1 Sentry 1 | . . 1 . Assembled 2 | . . . 2 Best Kill Streak 1 | . . 1 1 Combat Bots Only 1 | . . 1 1 Max Kills in Single Turn 1 | . . 1 1 Gunslinging . | . . . . Exploded 1 | . . 1 . Melee . | . . . . Uniques/NPCs Destroyed . | . . . . Combat | -11 -10 -9 -9 -------- Run | Yrd Mat Mat Min Hostile Shots Fired 95 | . . 18 77 Missed 23 | . . 4 19 Hits 72 | . . 14 58 Melee 29 | . . . 29 Projectile 43 | . . 14 29 AOE 2 | . . . 2 Critical Strikes 1 | . . . 1 Damage Taken 1362 | . . 206 1156 Core 405 | . . 30 375 Absorbed by Shields . | . . . . Redirected to Shielding 12 | . . 4 8 Core Remaining (%) 100 | 100 100 . . Volleys Fired 10 | . . 2 8 Largest 2 | . . 2 2 Hottest 53 | . . 53 40 Shots Fired 20 | . . 4 16 Gun 18 | . . 2 16 Cannon . | . . . . Launcher 2 | . . 2 . Special . | . . . . Kinetic 18 | . . 2 16 Thermal . | . . . . Explosive 2 | . . 2 . Electromagnetic . | . . . . Robot Hit Streak 2 | . . 2 1 Robot Miss Streak 4 | . . 1 4 Penetration Max . | . . . . Secondary Targets . | . . . . Shots Hit Robots 7 | . . 2 5 Core Hits 7 | . . 3 4 Critical Kills . | . . . . Critical Parts Destroyed . | . . . . Critical Strikes . | . . . . Melee Attacks . | . . . . Impact . | . . . . Slashing . | . . . . Piercing . | . . . . Sneak Attacks . | . . . . Combat Hostiles . | . . . . Follow-up Attacks . | . . . . Damage Inflicted 133 | . . 57 76 Guns 77 | . . 11 66 Cannons . | . . . . Explosions 40 | . . 40 . Melee . | . . . . Ramming 16 | . . 6 10 Kinetic 77 | . . 11 66 Thermal . | . . . . Explosive 40 | . . 40 . Electromagnetic . | . . . . Impact . | . . . . Slashing . | . . . . Piercing . | . . . . Highest Corruption 41 | . . . 41 Average Corruption 24 | . . . 24 Corruption Purged . | . . . . Corruption Blocked . | . . . . Effects 12 | . . . 12 Message Errors 3 | . . . 3 Matter Fused 2 | . . . 2 Heat Flow Errors 1 | . . . 1 Data Loss (minor) 1 | . . . 1 Data Loss (major) 1 | . . . 1 Misdirections 4 | . . . 4 Overload Shots . | . . . . Overflow Damage . | . . . . Projectiles . | . . . . Explosions . | . . . . Melee . | . . . . Knockbacks . | . . . . Impact . | . . . . Kinetic . | . . . . Secondary . | . . . . Self-Inflicted Damage 7 | . . 3 4 Shots . | . . . . Rammed 7 | . . 2 5 Targets Rammed 7 | . . 2 5 Kicked . | . . . . Crushed . | . . . . Highest Temperature 250 | . . 1 250 Average Temperature 110 | . . 1 118 Received Heat Transfer 472 | . . 72 400 Siege Activations . | . . . . Martial Activations . | . . . . Shielding Activations . | . . . . Robots Disrupted . | . . . . Combat Hostiles . | . . . . Robots Corrupted . | . . . . Combat Hostiles . | . . . . Parts Fried . | . . . . Impact Corruptions . | . . . . Robots Melted . | . . . . Combat Hostiles . | . . . . Parts Melted . | . . . . Heat Transferred . | . . . . Parts Sabotaged . | . . . . Parts Stolen . | . . . . Parts Stripped . | . . . . Power Chain Reactions . | . . . . Alert | -11 -10 -9 -9 ------- Run | Yrd Mat Mat Min Maximum Alert Level . | . . . . Low Security (%) 100 | 100 100 100 100 Level 1 . | . . . . Level 2 . | . . . . Level 3 . | . . . . Level 4 . | . . . . Level 5 . | . . . . High Security . | . . . . Max Security . | . . . . Peak Influence 46 | . 5 46 . Initial . | . . . . Average 2 | . . 9 . Influence Increases 51 | . 5 46 . Destroy 0b10 Robot/C 20 | . . 20 . Destroy Leader 10 | . . 10 . Successful Hack 5 | . 5 . . Destroy Structure 16 | . . 16 . Influence Decreases 51 | . 5 46 . Time Decay 51 | . 5 46 . Squads Dispatched . | . . . . Investigation . | . . . . Extermination . | . . . . Reinforcement . | . . . . Assault . | . . . . Garrison . | . . . . Intercept . | . . . . Searches Triggered . | . . . . Construction Impeded . | . . . . Haulers Reinforced . | . . . . Active Scanning Responses . | . . . . Cargo Convoy Interrupts . | . . . . Stealth | -11 -10 -9 -9 --------- Run | Yrd Mat Mat Min Distress Signals 2 | . . . 2 Communications Jammed . | . . . . Distress Signals . | . . . . Times Spotted 24 | . . 8 16 Peak Tracking Total 8 | . . 8 6 Tactical Retreats 4 | . . . 4 Traps | -11 -10 -9 -9 ------- Run | Yrd Mat Mat Min Traps Triggered . | . . . . Indirectly . | . . . . Trap Hack Attempts . | . . . . Triggered . | . . . . Disarmed . | . . . . Reprogrammed . | . . . . Reused . | . . . . Traps Extracted . | . . . . Installed . | . . . . Triggered . | . . . . Machines | -11 -10 -9 -9 ---------- Run | Yrd Mat Mat Min Machines Disabled . | . . . . Max in Single Turn . | . . . . Machines Repaired . | . . . . Machines Dismantled . | . . . . Machines Sabotaged . | . . . . Overloaded Fab Kills . | . . . . Hacking | -11 -10 -9 -9 --------- Run | Yrd Mat Mat Min Machines Accessed 3 | . 2 1 . Terminals 3 | . 2 1 . Fabricators . | . . . . Repair Stations . | . . . . Recycling Units . | . . . . Scanalyzers . | . . . . Garrison Access . | . . . . Total Hacks 3 | . 2 1 . Successful 2 | . 1 1 . Failed 1 | . 1 . . Catastrophic . | . . . . Database Lockouts . | . . . . Manual 2 | . . 2 . Terminals 3 | . 2 1 . Fabricators . | . . . . Repair Stations . | . . . . Recycling Units . | . . . . Scanalyzers . | . . . . Garrison Access . | . . . . Terminal Hacks 2 | . 1 1 . Prototype ID Bank 1 | . . 1 . Hauler Manifests 1 | . 1 . . Fabricator Hacks . | . . . . Repair Station Hacks . | . . . . Recycling Unit Hacks . | . . . . Scanalyzer . | . . . . Garrison Access Hacks . | . . . . Unauthorized Hacks . | . . . . Terminals . | . . . . Fabricators . | . . . . Repair Stations . | . . . . Recycling Units . | . . . . Scanalyzers . | . . . . Garrison Access . | . . . . Data Cores Recovered . | . . . . Used . | . . . . Hacking Detections 3 | . 2 1 . Full Trace Events . | . . . . Feedback Events . | . . . . Feedback Blocked . | . . . . Robot Schematics Acquired . | . . . . Robots Built . | . . . . Authchips . | . . . . Time . | . . . . Total Robot Build Rating . | . . . . Part Schematics Acquired . | . . . . Parts Built . | . . . . Authchips . | . . . . Time . | . . . . Total Part Build Rating . | . . . . Parts Repaired . | . . . . Time . | . . . . Parts Recycled . | . . . . Recycled Matter . | . . . . Retrieved Matter . | . . . . Retrieved Components . | . . . . Parts Scanalyzed . | . . . . Part Schematics Acquired . | . . . . Parts Damaged . | . . . . Bothacking | -11 -10 -9 -9 ------------ Run | Yrd Mat Mat Min Used RIF Installer . | . . . . Robots Hacked . | . . . . Non-combat . | . . . . Combat . | . . . . Robot Hacks Applied . | . . . . Relay Couplers Released . | . . . . Fabnet Peak Effective % . | . . . . Robots Rewired . | . . . . Allies Hacked . | . . . . Hacks Repelled . | . . . . Allies | -11 -10 -9 -9 -------- Run | Yrd Mat Mat Min Total Allies . | . . . . Largest Group . | . . . . Highest-Rated Group . | . . . . Highest-Rated Ally . | . . . . Total Orders . | . . . . Ally Attacks . | . . . . Total Damage . | . . . . Kills . | . . . . Allies Corrupted . | . . . . Allies Melted . | . . . . Intel | -11 -10 -9 -9 ------- Run | Yrd Mat Mat Min Active Infowar (turns) 34 | . . . 34 Terrain 10 | . . . 10 Structural 24 | . . . 24 Robot Analysis Total . | . . . . Derelict Logs Recovered 2 | . . . 2 Drone Launches . | . . . . Drone Recoveries . | . . . . Exploration | -11 -10 -9 -9 ------------- Run | Yrd Mat Mat Min Turns Passed 966 | 67 101 227 571 Spaces Moved 780 | 46 81 168 485 Core 78 | 1 . . 77 Treads . | . . . . Legs 260 | 45 81 134 . Wheels 25 | . . . 25 Hover 380 | . . 34 346 Flight 37 | . . . 37 Fastest Speed 50 | 50 120 116 50 Average Speed 112 | 118 120 120 108 Slowest Speed 275 | 120 120 190 275 Overloaded Moves . | . . . . Propulsion Burnouts . | . . . . Robots Hopped . | . . . . Potential Cave-ins . | . . . . Cave-ins Triggered . | . . . . Exploration Rate (%) 32 | 4 21 27 78 Regions Visited 3 Branch Regions 1 Pre-discovered Areas 1 | . . . 1 Known Exits Taken 2 | . 1 1 . Unknown Exits Taken 1 | 1 . . . Scrap Searched 2 | . . . 2 Spaces Dug . | . . . . Terrain Destroyed 22 | . . 22 . Melee . | . . . . Projectile . | . . . . AOE 22 | . . 22 . Terrain Rammed . | . . . . Walls Destroyed . | . . . . Machines Disabled . | . . . . Actions | -11 -10 -9 -9 --------- Run | Yrd Mat Mat Min Total 837 | 55 84 187 511 Wait . | . . . . Move 777 | 45 80 167 485 Hop . | . . . . Pick Up 11 | 4 3 4 . Fast Attach 14 | 6 1 4 3 Attach 9 | . . 1 8 Detach . | . . . . Swap 2 | . . 2 . Drop 6 | . . 5 1 Fire 10 | . . 2 8 Melee . | . . . . Ram 8 | . . 2 6 Kick . | . . . . Crush . | . . . . Escape Stasis . | . . . . Rewire . | . . . . Trap . | . . . . Miscellaneous . | . . . . Route ------- -11/Scrapyard -10/Materials -9/Materials -9/Mines History --------- Turn | Location | Event 8 | -11/Scrapyard | Discovered new exit (range 13) 68 | -11/Scrapyard | Entered Materials 164 | -10/Materials | Discovered new exit (range 3) 168 | -10/Materials | Identified exit to Materials 169 | -10/Materials | Entered another Materials area 169 | -9/Materials | Evolved 2 slots: Utility x2 376 | -9/Materials | Build established: Mutant 384 | -9/Materials | Discovered new exit (range 11) 394 | -9/Materials | Identified exit to Mines 396 | -9/Materials | Entered Mines 397 | -9/Mines | Assembled infested the area 397 | -9/Mines | Met a Derelict bent on vengeance 402 | -9/Mines | Assisted by a Guerilla fighting off Assembled 478 | -9/Mines | Received a Rocket Launcher from a helpful Derelict 585 | -9/Mines | Learned 4 Materials zone layouts 586 | -9/Mines | Learned 2 Materials zone layouts 823 | -9/Mines | System corruption reached 10% 878 | -9/Mines | Core integrity fell below 50% 887 | -9/Mines | Learned location of Storage (-7) 906 | -9/Mines | System corruption reached 30% 959 | -9/Mines | Core integrity fell below 20% 963 | -9/Mines | Lost 16 parts (2p4n6u4w) 967 | -9/Mines | Destroyed by as-09141 with Assembled Heavy Rifle Last Messages --------------- destroying stuff raised the alert level high enough to trigger assault squads over in the main complex, and they later decided the best way to defend their interests would be to start expanding in this direction." H> Ion Engine destroyed. Welding Torch destroyed. System corrupted by crushing effect (+3). System corrupted by crushing effect (+5). SNM ZS16M>ZYDPTWSS# DK7 Acquired Terrain Scanner. K-01 Serf collects debris. Acquired Sml. Storage Unit. System corrupted: Component data lost. Extracted 29 matter. Acquired Com. Wheel. K-01 Serf collects debris. Acquired 27 matter. K-01 Serf collects debris. Map ----- +----------------------------------------------------+ | | | | | | | | | ?????????????????????????????????????????????????? | | ?????????????????????????????????????????????????? | | ?????????????????????????????????????????????????? | | ?????????????????????????????????????????????????? | | ?????????????????????????????????????????????????? | | ????????????????????????????????##???????????????? | | ???????????????????????????????#" ???????????????? | | ???????????????????????????????#%##??????????????? | | ??????????????????????????????## "####???????????? | | ?????????????????????????????# # #???????????? | | ????????????????????????????? ##???????????? | | ??????????????????????????#?? #???????????? | | ???????????????????????????? %= ##???????????? | | ?????????????# ??#?????????# #???????????? | | ?????????????# ? ???????### #????????????? | | ??????????????# ???####!! #????????????? | | ???????????????# ###!!!% " " #????????????? | | #???????????#??# %!!==% """ ##????????????? | | ##?????????????# ###=*k! ## #?????????????? | | ##???????????????????##*!k#### #?????????????? | | ##???????????????????#*%##??## ##?????????????? | | #???????????????????#|@#????####??????????????? | | #??????????????????#!a#??????????????????????? | | #?????????????????##!%#??????????????????????? | | # ##????????????????##=! ##?????#???????????????? | | ?###?????????????????# *= !#?????????????????????? | | ?????????????????????# !|a #?????????????????????? | | ?????????????????????## a ##?????????????????????? | | ##???????????????????## ##??????????#??????????? | | ###?????????????????# ###??####?????????????? | | ###########???????# ### #?????????????? | | |!%! = #????# #?????????????? | | %*##########? ?????## #?????????????? | | !%##?####??#% ####### ##?????????????? | | =[### #### ### #??????????????? | | ## ###?# #??????????????? | | #####%#### ##???# #??????????????? | | ##?????# ###### #??????????????? | | # ##### #?????# #??????????????? | | ####???## ### #?## ###### ####### #??????? | | ????????# #??## #????# #??????? | | ????????# #######???# #???## ########???????? | | ??####### ##????????## ##??## ######?????????? | | ??# #????????## ##### ###########????? | | ??# #???????## ### #######????? | | ??# ### #???????# ##### ##????? | +----------------------------------------------------+ Best States ------------- Heat Dissipation 28 Energy Generation 14 Energy Capacity 430 Matter Stores 300 Matter Capacity 300 Sight Range 16 Terrain Scan Range 14 Terrain Scan Density 10 Power Shielding 33 Evasion (%) 55 Item Schematics ----------------- None Robot Schematics ------------------ None Fabricated ------------ Nothing Repaired ---------- Nothing Alien Tech Used ----------------- None Achievements -------------- None Challenges ------------ None Game ------ Seed ArmoredAnalysisActivator Manual? 0 Play Time 00:18:09 Cumulative 7.4 hours Start 2025.08.02 @ 04:00:05 End 2025.08.02 @ 04:15:35 Sessions 1 Manual Loads 0 Difficulty Rogue Special Mode None Game No. 15 Rogue 13 Adventurer 0 Explorer 2 Win Type - Total 0 Types 0/0/0/0/0/0/0/0/0/0 Lore% 9 Gallery% 15 Achievement% 17 Wizard Run 0 Options --------- Layout 1 ASCII 0 Keyboard 0 Movement Numpad Keybinds 0 Fullscreen 1 Font 24/Smallcaps Map View 50x35 Zoom Use 0% Tactical HUD 0 Map Filters NONE Filters NONE Steam 1 RUN: 246f4047-4314-4a63-acaa-6b6a1076ac9f